bitfinex/quotes_SOLUSD_20240826
["timestamp","ask_amount","ask_price","bid_price","bid_amount"]
[1724682649087,7.1251925,157.63,157.49,20.0]
[1724682650620,6.3452,157.6,157.49,20.0]
[1724682651107,6.3461,157.58,157.49,20.0]
[1724682651283,22.9853925,157.63,157.48,23.2647]
[1724682651284,51.7234,157.62,157.48,23.2647]
[1724682651491,55.94102676,157.56,157.48,23.2647]
[1724682651889,55.94102676,157.56,157.48,6.625]
[1724682652507,6.3495,157.5,157.44,6.0503]
[1724682652702,71.80872676,157.56,157.5,500.0]
[1724682652907,55.94102676,157.56,157.5,500.0]
[1724682653106,6.3476,157.54,157.5,500.0]
[1724682653680,55.94102676,157.56,157.5,500.0]
[1724682653681,62.28812676,157.56,157.5,500.0]
[1724682654399,6.3479,157.54,157.5,500.0]
[1724682654600,55.94102676,157.56,157.5,500.0]
[1724682655000,6.3475,157.55,157.5,500.0]
[1724682655205,6.3464,157.57,157.5,500.0]
[1724682655407,55.94102676,157.59,157.5,500.0]
[1724682655408,62.28692676,157.59,157.5,500.0]
[1724682655612,55.94102676,157.59,157.5,500.0]
[1724682655785,20.0,157.65,157.63,31.26241968]
[1724682656917,22.2024,157.64,157.63,31.26241968]
[1724682657120,42.2024,157.64,157.63,31.26241968]
[1724682657498,22.2024,157.64,157.63,31.26241968]
[1724682657691,67.2024,157.64,157.63,31.26241968]
[1724682657916,6.3435,157.64,157.63,31.26241968]
[1724682658231,15.8556,157.68,157.63,31.26241968]
[1724682658388,6.3435,157.64,157.63,31.26241968]
[1724682658895,15.8556,157.68,157.63,31.26241968]
[1724682658896,6.3432,157.65,157.63,31.26241968]
[1724682659096,6.3428,157.66,157.63,31.26241968]
[1724682659298,15.8556,157.68,157.63,31.26241968]
[1724682659299,6.3432,157.65,157.63,31.26241968]
[1724682659510,6.3431,157.66,157.63,31.26241968]
[1724682659826,6.3432,157.65,157.63,31.26241968]
[1724682659997,6.3435,157.64,157.63,31.26241968]
[1724682660199,6.3432,157.65,157.63,31.26241968]
[1724682660695,6.3435,157.64,157.63,31.26241968]
[1724682661092,15.8576,157.66,157.55,6.0503]
[1724682661394,15.8576,157.66,157.55,12.3971]
[1724682661590,15.8541,157.69,157.56,15.8663]
[1724682661815,15.8541,157.69,157.58,15.8644]
[1724682662129,22.07421838,157.71,157.61,6.3446]
[1724682662130,6.63611838,157.71,157.61,6.3446]
[1724682662289,15.8509,157.72,157.62,6.3442]
[1724682662290,6.3416,157.69,157.62,6.3442]
[1724682662998,15.8483,157.75,157.61,1.26877989]
[1724682663211,6.3407,157.71,157.64,6.3434]
[1724682663407,55.94102676,157.74,157.62,6.344]
[1724682663627,55.94102676,157.74,157.57,55.94102676]
[1724682663803,6.3412,157.7,157.63,6.3438]
[1724682664315,6.3416,157.69,157.62,6.3443]
[1724682664523,6.3416,157.69,157.63,6.3438]
[1724682664830,6.3408,157.71,157.64,6.3435]
[1724682665331,55.94102676,157.74,157.58,15.8648]
[1724682665332,15.8509,157.72,157.58,15.8648]
[1724682665522,6.3429,157.66,157.58,15.8648]
[1724682665825,62.57564203,157.74,157.61,15.8618]
[1724682666023,6.3413,157.7,157.63,6.3436]
[1724682666331,47.5455,157.75,157.61,15.8618]
[1724682666332,6.3408,157.71,157.64,6.3434]
[1724682666700,6.3412,157.7,157.63,6.3439]
[1724682667041,6.3416,157.69,157.61,15.8618]
[1724682667728,6.3412,157.7,157.63,6.3438]
[1724682667897,46.42066999,157.73,157.64,15.8587]
[1724682668236,32.5021925,157.79,157.62,6.0333]
[1724682668237,6.3395,157.74,157.67,22.1974]
[1724682668895,6.3399,157.73,157.67,15.8552]
[1724682669111,6.3404,157.72,157.65,6.343]
[1724682669313,15.8494,157.74,157.64,15.8586]
[1724682669514,15.8494,157.74,157.63,15.7925]
[1724682669739,6.3412,157.7,157.63,22.1362]
[1724682670053,6.3412,157.7,157.49,20.0]
[1724682670054,15.7753,157.71,157.59,31.350053]
[1724682670332,20.0,157.68,157.59,31.350053]
[1724682670547,20.0,157.68,157.54,31.62045945]
[1724682670748,21.9602,157.71,157.54,31.62045945]
[1724682670749,20.0,157.66,157.54,31.62045945]
[1724682671029,9.51208172,157.65,157.54,31.62045945]
[1724682671227,31.7149,157.66,157.54,31.62045945]
[1724682671600,20.0,157.7,157.54,31.62045945]
[1724682671601,21.9602,157.71,157.54,31.62045945]
[1724682671804,21.9602,157.71,157.59,31.350053]
[1724682672030,6.3435,157.65,157.59,31.350053]
[1724682672231,6.3423,157.67,157.6,6.345]
[1724682672404,6.3423,157.67,157.61,31.1217857]
[1724682672928,6.3419,157.68,157.61,31.1217857]
[1724682673136,6.3419,157.68,157.61,37.4664857]
[1724682673431,6.3403,157.72,157.62,6.1477]
[1724682673641,6.3403,157.72,157.64,22.2022]
[1724682673800,6.3403,157.72,157.65,6.343]
[1724682674005,6.3403,157.72,157.64,22.2022]
[1724682674529,16.2857,157.76,157.62,12.4916]
[1724682674705,16.2857,157.76,157.63,6.3438]
[1724682675043,15.8488,157.74,157.62,22.0077]
[1724682675323,6.3424,157.67,157.62,6.1477]
[1724682675515,15.8519,157.71,157.62,6.1477]
[1724682675707,6.3427,157.67,157.59,37.695553]
[1724682675919,6.3428,157.66,157.59,31.350053]
[1724682676116,45.0,157.7,157.59,31.350053]
[1724682676117,15.8551,157.68,157.59,31.350053]
[1724682676352,15.8551,157.68,157.49,2.16259306]
[1724682676353,35.5869,157.65,157.52,31.34267971]
[1724682676502,15.5869,157.65,157.53,31.1341832]
[1724682677006,15.5869,157.65,157.53,37.4819832]
[1724682677209,15.8608,157.63,157.6,31.47512678]
[1724682678534,6.3447,157.61,157.6,31.47512678]
[1724682679044,35.8619,157.62,157.6,14.80852678]
[1724682679204,20.0,157.61,157.5,500.0]
[1724682679406,20.0,157.58,157.5,500.0]
[1724682679635,20.0,157.56,157.5,500.0]
[1724682679837,20.0,157.54,157.5,498.2083883]
[1724682680135,20.0,157.53,157.5,498.2083883]
[1724682680339,44.5757,157.51,157.5,498.2083883]
[1724682680545,64.5757,157.51,157.5,476.6114883]
[1724682680845,64.5757,157.51,157.5,382.2909883]
[1724682681018,64.92786439,157.51,157.5,360.3263883]
[1724682681220,64.92786439,157.51,157.5,334.6387883]
[1724682681405,64.92786439,157.51,157.5,321.7667883]
[1724682681610,64.92786439,157.51,157.5,284.1839883]
[1724682681818,71.25006183,157.51,157.5,253.11437456]
[1724682682031,111.3647027,157.51,157.5,222.74257456]
[1724682682205,111.3647027,157.51,157.5,165.45927456]
[1724682682405,105.0027027,157.51,157.5,121.24437456]
[1724682682830,105.0027027,157.51,157.5,114.8812852]
[1724682683030,105.0027027,157.51,157.5,92.1986852]
[1724682683246,101.25006183,157.51,157.5,49.2960852]
[1724682683423,101.25006183,157.51,157.5,3.1737852]
[1724682683607,6.3561,157.33,157.28,6.5078]
[1724682683803,6.3565,157.32,157.28,6.5078]
[1724682684915,6.3561,157.33,157.28,6.5078]
[1724682685119,15.8836,157.4,157.28,6.5078]
[1724682685330,6.3553,157.35,157.28,6.5078]
[1724682685543,15.8836,157.4,157.28,6.5078]
[1724682685856,5.91376439,157.42,157.28,6.5078]
[1724682686027,6.3544,157.37,157.29,6.3574]
[1724682686955,6.3544,157.37,157.28,6.5078]
[1724682687649,6.3552,157.35,157.28,6.5078]
[1724682688645,20.0,157.44,157.3,15.8929]
[1724682689125,6.3548,157.37,157.29,6.3575]
[1724682689522,6.3548,157.37,157.28,6.5078]
[1724682689723,20.0,157.44,157.31,6.3565]
[1724682689940,6.64824561,157.43,157.31,6.3565]
[1724682690131,6.3533,157.4,157.32,6.3564]
[1724682690335,6.3542,157.38,157.3,15.8925]
[1724682690638,6.3547,157.37,157.28,12.8658]
[1724682691021,6.3547,157.37,157.29,6.3574]
[1724682691337,6.354,157.39,157.29,17.16559175]
[1724682691532,57.66826439,157.46,157.29,17.16559175]
[1724682691533,5.91376439,157.46,157.39,6.3536]
[1724682691849,20.0,157.49,157.34,22.2434]
[1724682692153,6.354,157.39,157.31,6.3567]
[1724682692319,6.3548,157.37,157.3,15.5741]
[1724682692653,6.3548,157.36,157.3,15.5741]
[1724682692950,20.0,157.42,157.3,15.5741]
[1724682692951,15.8831,157.4,157.3,15.5741]
[1724682693551,6.3552,157.35,157.3,15.5741]
[1724682693749,15.8831,157.4,157.3,15.5741]
[1724682693955,6.3549,157.36,157.3,15.5741]
[1724682694123,6.354,157.38,157.31,6.3568]
[1724682694460,6.3538,157.39,157.31,22.2486]
[1724682694826,15.8795,157.44,157.32,6.3563]
[1724682695026,15.8795,157.44,157.33,6.3559]
[1724682695245,6.3532,157.41,157.33,6.3559]
[1724682695629,6.3516,157.44,157.36,6.3547]
[1724682695836,15.8761,157.47,157.34,28.7985]
[1724682696143,6.3528,157.41,157.34,22.4429]
[1724682696346,15.8761,157.47,157.34,22.4429]
[1724682696722,15.8793,157.44,157.34,22.4429]
[1724682696926,6.3538,157.39,157.34,22.4429]
[1724682697125,6.3544,157.38,157.34,22.4429]
[1724682697663,15.8821,157.41,157.34,22.4429]
[1724682697862,6.3552,157.35,157.34,22.4429]
[1724682700239,20.0,157.41,157.34,22.4429]
[1724682700558,31.7613,157.43,157.34,22.4429]
[1724682700859,47.6415,157.43,157.34,22.4429]
[1724682701061,6.3541,157.38,157.34,22.4429]
[1724682701353,6.3545,157.37,157.34,22.4429]
[1724682701732,15.8827,157.41,157.34,22.4429]
[1724682701957,6.3576,157.3,157.24,23.9175]
[1724682702163,15.8881,157.35,157.24,23.9175]
[1724682702362,6.3565,157.32,157.24,23.9175]
[1724682702865,15.8881,157.35,157.24,23.9175]
[1724682703032,6.3581,157.28,157.24,23.9175]
[1724682703233,15.8881,157.35,157.24,23.9175]
[1724682703234,6.3593,157.25,157.24,23.9175]
[1724682704659,6.3589,157.26,157.24,23.9175]
[1724682704858,6.3592,157.26,157.24,23.9175]
[1724682705061,15.8935,157.3,157.24,23.9175]
[1724682705236,6.3581,157.28,157.24,23.9175]
[1724682705654,15.8904,157.33,157.24,23.9175]
[1724682705960,6.3578,157.29,157.24,23.9175]
[1724682706342,15.8904,157.33,157.24,23.9175]
[1724682706733,6.3585,157.27,157.24,23.9175]
[1724682708261,6.3589,157.26,157.24,23.9175]
[1724682708444,6.3593,157.25,157.24,23.9175]
[1724682709159,12.56341595,157.4,157.24,23.9175]
[1724682709342,6.3582,157.28,157.24,23.9175]
[1724682709663,51.7694,157.39,157.24,23.9175]
[1724682709664,6.3593,157.25,157.24,23.9175]
[1724682710036,6.3589,157.26,157.24,23.9175]
[1724682710234,6.3593,157.25,157.24,23.9175]
[1724682712261,6.3597,157.24,157.23,0.8131925]
[1724682712463,6.3596,157.25,157.23,0.8131925]
[1724682712643,6.3597,157.24,157.23,0.8131925]
[1724682713167,6.3593,157.25,157.23,0.8131925]
[1724682713837,6.3597,157.24,157.23,0.8131925]
[1724682720891,6.3597,157.24,157.23,9.25e-05]
[1724682721560,12.27346439,157.24,157.23,9.25e-05]
[1724682722379,6.3641,157.13,157.12,9.2026]
[1724682722751,6.3653,157.1,157.09,19.3676]
[1724682723098,51.8101,157.19,157.08,0.8131925]
[1724682723099,6.3657,157.09,157.08,0.8131925]
[1724682723793,6.64911473,157.14,157.08,0.8131925]
[1724682723973,6.3646,157.12,157.08,0.8131925]
[1724682724298,15.9107,157.13,157.08,0.8131925]
[1724682724496,6.3649,157.11,157.08,0.8131925]
[1724682724872,6.3653,157.1,157.08,0.8131925]
[1724682725372,6.3657,157.09,157.08,0.8131925]
[1724682727262,47.727,157.15,157.08,0.8131925]
[1724682727666,5.91376439,157.16,157.08,0.8131925]
[1724682727893,5.91376439,157.16,157.09,28.8912]
[1724682728068,6.3657,157.09,157.08,0.8131925]
[1724682730771,67.7274,157.15,157.08,0.8131925]
[1724682730977,6.3657,157.09,157.08,0.8131925]
[1724682733586,6.3657,157.09,157.08,9.25e-05]
[1724682734781,58.92777947,157.09,157.08,9.25e-05]
[1724682734989,58.92777947,157.09,156.96,9.7592]
[1724682734990,6.3706,156.97,156.96,9.7592]
[1724682736101,6.3714,156.95,156.94,24.0336]
[1724682736270,15.9271,156.97,156.92,10.8247925]
[1724682736271,6.3722,156.93,156.92,10.8247925]
[1724682736687,15.9238,157.0,156.92,10.8247925]
[1724682736898,5.91376439,157.03,156.92,10.8247925]
[1724682737086,6.3701,156.99,156.92,10.8247925]
[1724682737475,6.3701,156.99,156.92,17.1972925]
[1724682737683,6.3706,156.97,156.92,10.8247925]
[1724682738199,6.3702,156.98,156.92,10.8247925]
[1724682738401,15.9175,157.06,156.93,1.27436191]
[1724682738607,6.3678,157.04,156.94,22.6594]
[1724682738804,6.3673,157.06,156.98,6.3702]
[1724682739016,15.9147,157.09,156.97,15.9264]
[1724682739173,15.9147,157.09,156.96,15.5839]
[1724682739174,15.9172,157.07,156.96,9.213]
[1724682739381,6.3682,157.03,156.96,9.213]
[1724682739683,6.3683,157.03,156.96,9.213]
[1724682739886,6.3678,157.04,156.96,31.5108]
[1724682740087,6.3678,157.04,156.96,25.1399]
[1724682740307,15.9171,157.07,156.96,9.213]
[1724682740525,6.3699,156.99,156.96,9.213]
[1724682740688,15.9214,157.03,156.96,9.213]
[1724682740889,6.3706,156.97,156.96,9.213]
[1724682741290,21.83706439,157.01,156.9,9.6813]
[1724682741484,6.3722,156.93,156.9,9.6813]
[1724682741805,6.3722,156.94,156.9,9.6813]
[1724682742006,15.9254,156.99,156.9,9.6813]
[1724682742189,6.3722,156.93,156.9,9.6813]
[1724682742374,6.3722,156.93,156.85,6.3754]
[1724682742905,6.3722,156.93,156.86,6.375]
[1724682743107,15.9254,156.99,156.86,15.9368]
[1724682743423,6.3722,156.93,156.83,25.0971]
[1724682743588,6.3722,156.93,156.85,6.3751]
[1724682743909,6.3722,156.93,156.83,25.0971]
[1724682744089,6.3722,156.93,156.85,6.3755]
[1724682744481,6.3719,156.94,156.86,15.9376]
[1724682744696,5.91376439,156.99,156.86,15.9376]
[1724682744897,6.3718,156.95,156.87,6.3746]
[1724682745093,6.372,156.94,156.86,22.3126]
[1724682746014,6.3714,156.96,156.88,6.3741]
[1724682746411,6.3708,156.97,156.92,10.5869925]
[1724682746589,6.3705,156.98,156.92,10.5869925]
[1724682746788,6.64718231,157.11,156.93,1.27431041]
[1724682747012,6.64718231,157.11,157.01,34.2181]
[1724682747206,15.9123,157.12,157.01,34.2181]
[1724682747415,15.915,157.09,157.01,34.2181]
[1724682747783,6.3674,157.05,157.01,34.2181]
[1724682747988,15.915,157.09,157.01,34.2181]
[1724682747989,6.3673,157.06,157.01,34.2181]
[1724682748222,39.00671966,157.11,157.01,34.2181]
[1724682748223,7.18091966,157.11,157.01,34.2181]
[1724682748817,6.3666,157.07,157.01,34.2181]
[1724682749017,6.367,157.06,157.01,34.2181]
[1724682749356,31.8269,157.1,157.01,34.2181]
[1724682749516,15.9164,157.07,157.01,34.2181]
[1724682749712,6.3686,157.02,157.01,9.5738]
[1724682749899,6.3682,157.03,157.01,9.5738]
[1724682750287,6.3679,157.04,157.01,9.5738]
[1724682750615,15.9164,157.07,157.01,9.5738]
[1724682750788,6.3686,157.02,157.01,9.5738]
[1724682751313,6.3706,156.97,156.96,9.6168]
[1724682751683,15.9233,157.01,156.96,9.6168]
[1724682751887,25.85038217,157.07,156.96,9.6168]
[1724682751888,15.9194,157.05,156.96,9.6168]
[1724682752199,6.3691,157.01,156.96,9.6168]
[1724682752888,6.3698,156.99,156.96,9.6168]
[1724682753102,15.9194,157.05,156.96,9.6168]
[1724682753300,5.85038217,157.07,156.96,9.6168]
[1724682753301,15.9217,157.02,156.96,9.6168]
[1724682754202,6.3706,156.97,156.96,9.6168]
[1724682754404,6.3716,156.95,156.92,1.0131925]
[1724682754795,20.0,157.01,156.92,1.0131925]
[1724682755022,20.0,157.0,156.92,1.0131925]
[1724682755529,6.3722,156.93,156.92,1.0131925]
[1724682755724,6.44982661,156.99,156.92,1.0131925]
[1724682757931,6.64431657,157.0,156.92,1.0131925]
[1724682758498,6.44982661,157.03,156.92,1.0131925]
[1724682758822,6.64423707,157.02,156.92,1.0131925]
[1724682759208,13.09406368,157.02,156.92,1.0131925]
[1724682759609,6.3715,156.95,156.92,1.0131925]
[1724682759818,6.3711,156.96,156.92,1.0131925]
[1724682760217,6.3722,156.93,156.92,1.0131925]
[1724682760742,22.3028,156.93,156.92,1.0131925]
[1724682762850,28.75262661,156.93,156.92,9.25e-05]
[1724682763156,6.3722,156.93,156.92,9.25e-05]
[1724682763328,22.3028,156.93,156.92,9.25e-05]
[1724682764638,6.3722,156.93,156.92,9.25e-05]
[1724682765641,6.44982661,156.98,156.92,9.25e-05]
[1724682765821,6.3693,157.01,156.93,6.3721]
[1724682766027,6.3698,156.99,156.93,33.5834]
[1724682766232,6.44982661,157.04,156.93,33.5834]
[1724682766233,6.3696,157.0,156.93,33.5834]
[1724682766957,6.3688,157.02,156.94,1.27418692]
[1724682767164,13.00722733,157.05,156.97,6.3706]
[1724682767326,6.3679,157.04,156.96,6.371]
[1724682767529,6.3679,157.04,156.96,7.64494307]
[1724682767726,6.3679,157.04,156.96,7.64484307]
[1724682767923,6.3673,157.06,156.97,6.3706]
[1724682768131,6.3678,157.04,156.95,22.2991]
[1724682768538,6.44982661,157.08,156.96,1.27387033]
[1724682768752,6.44982661,157.08,156.95,15.9281]
[1724682769155,6.3683,157.03,156.95,22.2992]
[1724682769366,6.3677,157.05,156.95,15.9281]
[1724682769565,6.3677,157.05,156.96,9.1886]
[1724682769749,6.3677,157.05,156.97,6.3704]
[1724682770067,6.3678,157.04,156.96,15.5596]
[1724682770235,6.3686,157.02,156.96,9.1886]
[1724682770445,15.9179,157.06,156.96,9.1886]
[1724682770774,6.3687,157.02,156.96,9.1886]
[1724682771342,6.3683,157.03,156.96,15.5596]
[1724682771746,6.3691,157.01,156.96,9.1886]
[1724682772536,6.44982661,157.08,156.96,9.1886]
[1724682772537,6.3702,156.98,156.96,9.1886]
[1724682772731,31.8358,157.06,156.96,9.1886]
[1724682772732,6.3706,156.97,156.96,9.1886]
[1724682773270,6.3718,156.94,156.93,24.3565]
[1724682773468,6.3715,156.95,156.93,24.3565]
[1724682773767,14.40352405,157.03,156.93,24.3565]
[1724682773768,6.3705,156.98,156.93,24.3565]
[1724682774152,6.3712,156.96,156.93,24.3565]
[1724682774386,6.44982661,157.03,156.93,24.3565]
[1724682774387,6.3697,157.0,156.93,24.3565]
[1724682774571,6.3697,157.0,156.94,1.27436901]
[1724682774860,15.9212,157.03,156.93,24.3565]
[1724682775062,15.9232,157.01,156.93,24.3565]
[1724682775272,6.3711,156.96,156.93,24.3565]
[1724682775809,15.9196,157.04,156.93,24.3565]
[1724682775957,6.369,157.01,156.94,1.2742211]
[1724682776151,22.36652661,157.07,156.94,15.9289]
[1724682776357,6.3689,157.02,156.94,22.3006]
[1724682776680,22.36652661,157.07,156.93,30.7284]
[1724682776681,6.3697,157.0,156.93,30.7284]
[1724682777070,6.44982661,157.07,157.01,6.3689]
[1724682777257,6.367,157.06,157.02,23.9119]
[1724682777456,6.368,157.04,157.02,23.9119]
[1724682777691,6.3682,157.03,157.02,23.9119]
[1724682777986,6.369,157.01,157.0,9.8561]
[1724682778163,6.3686,157.02,157.0,9.8561]
[1724682778486,6.3678,157.04,157.0,9.8561]
[1724682778782,6.64243074,157.06,157.0,9.8561]
[1724682779164,6.367,157.06,157.0,9.8561]
[1724682779404,14.40352405,157.13,157.0,9.8561]
[1724682779571,6.3658,157.09,157.01,7.64211925]
[1724682779776,6.3658,157.09,157.02,1.27340633]
[1724682780169,6.3654,157.1,157.02,7.64190633]
[1724682780369,6.63980145,157.13,157.03,24.2982]
[1724682780566,13.00390145,157.13,157.05,6.3673]
[1724682780769,6.3646,157.12,157.04,31.4907]
[1724682780979,6.63980145,157.13,157.04,9.2044]
[1724682781282,6.3662,157.08,157.04,9.2044]
[1724682781490,22.55030145,157.13,157.04,9.2044]
[1724682781789,6.3657,157.09,157.04,9.2044]
[1724682781962,6.3662,157.08,157.04,9.2044]
[1724682782156,15.9105,157.13,157.04,9.2044]
[1724682782392,23.86419744,157.13,157.04,9.2044]
[1724682782685,6.3662,157.08,157.04,9.2044]
[1724682783283,6.3666,157.07,157.04,9.2044]
[1724682783658,15.9105,157.13,157.04,9.2044]
[1724682783659,6.3662,157.08,157.04,9.2044]
[1724682784081,15.9105,157.13,157.04,9.2044]
[1724682784395,6.3658,157.09,157.04,9.2044]
[1724682784987,15.9105,157.13,157.04,9.2044]
[1724682785191,7.95369744,157.17,157.05,7.64058738]
[1724682785359,6.3641,157.13,157.06,6.3668]
[1724682785559,6.44982661,157.18,157.07,7.63943016]
[1724682785780,6.363,157.16,157.08,7.63885808]
[1724682785960,6.44982661,157.18,157.08,7.63885808]
[1724682785961,6.44982661,157.18,157.09,9.1213]
[1724682786279,6.3629,157.16,157.11,24.9026]
[1724682786782,6.3629,157.16,157.12,1.27269897]
[1724682787282,6.3629,157.16,157.11,24.9026]
[1724682787482,6.3629,157.16,157.12,1.27264865]
[1724682787673,6.3633,157.15,157.11,24.9026]
[1724682787872,6.3639,157.14,157.11,24.9026]
[1724682788379,15.904,157.2,157.11,24.9026]
[1724682788586,6.3634,157.15,157.11,24.9026]
[1724682788784,15.904,157.2,157.11,24.9026]
[1724682789083,6.3645,157.13,157.11,24.9026]
[1724682789289,39.76119744,157.2,157.11,24.9026]
[1724682789482,6.3645,157.12,157.11,24.9026]
[1724682790191,6.365,157.11,157.09,9.1213]
[1724682790363,6.65209696,157.13,157.09,9.1213]
[1724682790559,6.3653,157.1,157.09,9.1213]
[1724682790760,6.65209696,157.13,157.06,23.807]
[1724682790963,6.3665,157.07,157.06,23.807]
[1724682791373,6.3673,157.05,157.04,9.4469]
[1724682791572,15.9183,157.06,156.99,24.0664]
[1724682791982,6.3679,157.04,156.99,24.0664]
[1724682792293,6.3682,157.03,156.99,24.0664]
[1724682792886,15.9144,157.1,156.99,30.4361]
[1724682793074,6.65209696,157.13,157.03,9.9692]
[1724682793486,15.9121,157.12,157.03,9.9692]
[1724682793685,15.9121,157.12,157.04,1.27334309]
[1724682793885,15.9121,157.12,157.03,9.9692]
[1724682794090,6.3662,157.08,157.03,9.9692]
[1724682794443,6.65209696,157.13,157.03,9.9692]
[1724682794577,22.56309696,157.13,157.03,9.9692]
[1724682794907,6.3678,157.04,157.03,9.9692]
[1724682795084,6.3674,157.05,157.03,9.9692]
[1724682795394,6.3678,157.04,157.03,9.9692]
[1724682796507,15.9158,157.08,157.03,9.9692]
[1724682796663,31.8234,157.12,157.03,9.9692]
[1724682796664,15.9128,157.11,157.03,9.9692]
[1724682797066,6.3665,157.07,157.03,9.9692]
[1724682797663,6.65209696,157.13,157.03,9.9692]
[1724682797867,6.3664,157.08,157.03,9.9692]
[1724682798298,6.65209696,157.13,157.03,9.9692]
[1724682798495,6.3678,157.04,157.03,9.9692]
[1724682800192,6.3674,157.05,157.03,9.9692]
[1724682800410,6.3678,157.04,157.03,9.9692]
[1724682800797,6.65405054,157.1,157.03,9.9692]
[1724682801001,6.3678,157.04,157.03,9.9692]
[1724682803912,6.3674,157.05,157.03,9.9692]
[1724682804118,22.56785054,157.1,157.03,9.9692]
[1724682804119,6.3678,157.04,157.03,9.9692]
[1724682805495,6.3675,157.05,157.03,9.9692]
[1724682806105,6.65405054,157.1,157.03,9.9692]
[1724682806334,6.3633,157.16,157.09,24.1916]
[1724682806622,6.65188937,157.13,157.1,1.27291148]
[1724682806795,6.3634,157.15,157.11,1.27284715]
[1724682806995,6.65561414,157.13,157.12,9.9555]
[1724682807215,13.01971414,157.13,157.12,9.9555]
[1724682809923,6.3637,157.14,157.12,9.9555]
[1724682810295,15.9048,157.19,157.12,9.9555]
[1724682810296,6.3641,157.13,157.12,9.9555]
[1724682813018,6.65682434,157.22,157.09,24.1916]
[1724682813019,6.3653,157.1,157.09,24.1916]
[1724682813231,6.3657,157.09,157.08,9.3475]
[1724682813436,6.3673,157.05,157.04,22.69]
[1724682813732,6.44982661,157.14,157.04,22.69]
[1724682813945,6.3666,157.07,157.04,22.69]
[1724682814106,6.3655,157.1,157.04,22.69]
[1724682814446,15.9066,157.17,157.06,6.3666]
[1724682814612,6.3641,157.13,157.07,1.27292868]
[1724682814810,6.3641,157.13,157.08,1.2729226]
[1724682815010,6.3641,157.13,157.06,6.3666]
[1724682815205,6.44982661,157.19,157.07,9.3058]
[1724682815403,6.3633,157.15,157.08,6.3658]
[1724682815635,15.9081,157.16,157.07,9.3058]
[1724682815803,6.3645,157.13,157.07,9.3058]
[1724682816333,15.9081,157.16,157.07,9.3058]
[1724682816709,6.3637,157.15,157.07,31.5886]
[1724682817424,6.3637,157.15,157.08,6.3659]
[1724682817914,31.7994,157.24,157.11,22.7842]
[1724682817915,6.3622,157.18,157.11,22.7842]
[1724682818227,6.3625,157.17,157.11,22.7842]
[1724682818533,22.55822434,157.22,157.11,22.7842]
[1724682818534,6.65682434,157.22,157.11,22.7842]
[1724682818714,6.3612,157.21,157.12,17.18389359]
[1724682819033,6.44982661,157.24,157.13,9.8456]
[1724682819402,15.901,157.23,157.13,9.8456]
[1724682820024,6.3621,157.18,157.13,9.8456]
[1724682820225,15.903,157.21,157.13,9.8456]
[1724682820816,6.3624,157.18,157.13,9.8456]
[1724682821016,6.3627,157.17,157.13,9.8456]
[1724682821231,6.3621,157.18,157.13,9.8456]
[1724682821520,6.3625,157.17,157.13,9.8456]
[1724682821825,22.34922661,157.24,157.13,9.8456]
[1724682822136,6.3621,157.19,157.13,9.8456]
[1724682822317,6.3621,157.18,157.13,9.8456]
[1724682822726,6.3627,157.17,157.13,9.8456]
[1724682822935,6.363,157.16,157.13,9.8456]
[1724682823249,6.3612,157.21,157.13,9.8456]
[1724682823421,6.65526974,157.26,157.15,15.9078]
[1724682823614,6.44982661,157.29,157.18,22.8221]
[1724682823820,6.3577,157.29,157.2,22.2638]
[1724682824019,6.3585,157.27,157.2,22.2638]
[1724682824241,6.3585,157.27,157.2,15.9029]
[1724682824637,0.8131,157.31,157.18,22.8221]
[1724682824835,6.44982661,157.3,157.18,22.8221]
[1724682825048,6.44982661,157.3,157.18,29.1841]